bitfinex-derivatives/quotes_SOLF0:USTF0_20240902
["timestamp","ask_amount","ask_price","bid_price","bid_amount"]
[1725316797476,0.05029576,134.33,134.28,9.14]
[1725316798380,3.7228,134.32,134.29,9.14]
[1725316798982,0.05029576,134.33,134.3,12.8629]
[1725316800176,0.05029576,134.33,134.3,9.14]
[1725316800378,0.05029576,134.33,134.31,12.8627]
[1725316800579,0.05029576,134.33,134.31,9.14]
[1725316801484,0.05029576,134.33,134.32,3.7226]
[1725316802683,0.05029576,134.33,134.31,12.8628]
[1725316803282,0.05029576,134.33,134.31,3.7228]
[1725316803884,0.05029576,134.33,134.32,12.8626]
[1725316806682,0.05029576,134.33,134.32,3.7226]
[1725316806881,0.05029576,134.33,134.32,12.8626]
[1725316807084,0.05029576,134.33,134.32,3.7226]
[1725316807280,0.05029576,134.33,134.28,5.18015943]
[1725316807885,0.05029576,134.33,134.3,9.14]
[1725316808190,0.0514381,134.33,134.31,9.14]
[1725316808383,0.0514381,134.33,134.32,12.8626]
[1725316808886,7.915,134.4,134.3,1.4532]
[1725316808887,2.8462,134.4,134.37,9.14]
[1725316809080,9.14,134.44,134.38,9.14]
[1725316809284,13.3355,134.45,134.38,9.14]
[1725316809486,3.71874069,134.44,134.39,9.14]
[1725316809994,0.05044684,134.43,134.4,0.05129523]
[1725316811098,0.05044684,134.43,134.4,12.91169523]
[1725316812584,0.05044684,134.43,134.4,3.77169523]
[1725316813680,0.05044684,134.43,134.41,9.14]
[1725316813887,0.05044684,134.43,134.42,9.14]
[1725316814088,10.4623,134.49,134.42,9.14]
[1725316814282,10.4623,134.49,134.44,9.14]
[1725316814489,1.3223,134.49,134.44,9.14]
[1725316815092,3.76826481,134.48,134.45,0.05165392]
[1725316815693,0.04996481,134.48,134.45,3.77065392]
[1725316818497,3.76826481,134.48,134.45,0.05165392]
[1725316818704,0.04996481,134.48,134.45,0.05165392]
[1725316819600,0.04996481,134.48,134.45,3.77045392]
[1725316821487,0.04996481,134.48,134.46,3.7186]
[1725316823704,0.04996481,134.48,134.47,3.7184]
[1725316824006,0.04996481,134.48,134.47,12.8584]
[1725316834014,3.76143805,134.53,134.47,9.14]
[1725316834217,3.76143805,134.53,134.5,9.14]
[1725316834914,3.80921907,134.53,134.5,12.90680988]
[1725316835813,7.52601907,134.53,134.5,12.90680988]
[1725316836913,3.7171,134.52,134.5,0.04920988]
[1725316837119,9.14,134.52,134.5,0.04920988]
[1725316837429,9.14,134.52,134.46,9.14]
[1725316838318,3.76576164,134.5,134.48,0.05215144]
[1725316838813,0.04796164,134.5,134.48,0.05215144]
[1725316839816,0.04796164,134.5,134.49,9.14]
[1725316849222,3.76556164,134.5,134.49,9.14]
[1725316852734,3.76556164,134.5,134.48,0.05215144]
[1725316855640,3.7179,134.49,134.48,0.05215144]
[1725316857639,3.76576164,134.5,134.48,0.05215144]
[1725316868544,3.7179,134.49,134.48,0.05215144]
[1725316869449,0.04796164,134.5,134.48,0.05215144]
[1725316869651,0.04796164,134.5,134.49,9.14]
[1725316870048,0.04796164,134.5,134.49,12.8579]
[1725316873349,1.326,134.58,134.49,9.14]
[1725316873546,1.326,134.58,134.55,9.14]
[1725316873547,4.95640834,134.58,134.55,9.14]
[1725316873860,3.63040834,134.58,134.55,9.14]
[1725316874056,1.4369,134.6,134.55,9.14]
[1725316874350,3.7156,134.58,134.56,0.0474259]
[1725316874555,7.41328631,134.58,134.56,0.0474259]
[1725316875441,3.7156,134.58,134.56,0.0474259]
[1725316876949,3.7157,134.57,134.56,0.0474259]
[1725316877458,3.76985757,134.59,134.56,12.9034259]
[1725316877658,3.76985757,134.59,134.56,9.1874259]
[1725316878846,0.05455757,134.59,134.56,0.0474259]
[1725316880154,3.7156,134.58,134.56,0.0474259]
[1725316884556,3.7154,134.58,134.56,3.7632259]
[1725316884754,3.7154,134.58,134.56,0.0474259]
[1725316884948,0.05455757,134.59,134.56,0.0474259]
[1725316886060,3.7156,134.58,134.56,0.0474259]
[1725316892358,3.7157,134.57,134.56,0.0474259]
[1725316896475,10.64175757,134.59,134.49,1.3293]
[1725316896476,3.7161,134.56,134.53,3.7167]
[1725316897562,3.76865534,134.56,134.53,3.76970124]
[1725316898564,3.7163,134.55,134.53,0.05300124]
[1725316898868,0.05255534,134.56,134.53,0.05300124]
[1725316899173,3.7164,134.55,134.53,0.05300124]
[1725316899962,3.76855534,134.56,134.53,3.76970124]
[1725316902163,0.05255534,134.56,134.54,3.7165]
[1725316904363,0.05255534,134.56,134.55,3.7162]
[1725316913471,0.05255534,134.56,134.53,0.05300124]
[1725316913667,0.05255534,134.56,134.53,9.19300124]
[1725316913872,0.05255534,134.56,134.54,9.14]
[1725316914072,0.05255534,134.56,134.54,12.8563]
[1725316921898,0.05255534,134.56,134.55,3.7162]
[1725316925094,2.7413,134.65,134.54,14.22130239]
[1725316925400,2.7413,134.65,134.6,9.14]
[1725316925594,3.7143,134.63,134.6,9.14]
[1725316925994,3.76581683,134.63,134.6,9.19539209]
[1725316928706,0.05151683,134.63,134.62,3.7143]
[1725316928897,0.05151683,134.63,134.61,9.14]
[1725316929606,0.05151683,134.63,134.61,12.8545]
[1725316930200,0.05151683,134.63,134.6,3.77009209]
[1725316930405,0.05151683,134.63,134.61,9.14]
[1725316930802,0.05151683,134.63,134.62,3.7143]
[1725316931302,0.05151683,134.63,134.61,9.14]
[1725316932411,0.05151683,134.63,134.61,12.8545]
[1725316932605,0.05151683,134.63,134.61,9.14]
[1725316932800,0.05151683,134.63,134.62,3.7143]
[1725316936706,0.05151683,134.63,134.61,12.8545]
[1725316937113,0.05151683,134.63,134.61,9.14]
[1725316937313,0.05151683,134.63,134.62,3.7143]
[1725316939814,0.05151683,134.63,134.61,12.8545]
[1725316942016,3.76561683,134.63,134.6,12.91019209]
[1725316942416,0.05151683,134.63,134.62,9.14]
[1725316943210,0.05151683,134.63,134.62,12.8543]
[1725316946418,1.3196,134.68,134.65,3.7134]
[1725316946611,1.3196,134.68,134.6,40.31445632]
[1725316946612,5.09011995,134.7,134.66,9.14]
[1725316946812,1.4512,134.72,134.67,3.7128]
[1725316947019,1.4512,134.72,134.68,9.14]
[1725316947216,1.4512,134.72,134.69,9.14]
[1725316947519,1.50282238,134.72,134.69,12.90763119]
[1725316949428,5.21432238,134.72,134.69,12.90763119]
[1725316950723,5.21432238,134.72,134.69,0.05543119]
[1725316951324,5.21432238,134.72,134.69,3.76773119]
[1725316951722,3.7118,134.71,134.69,0.05543119]
[1725316951929,1.50282238,134.72,134.69,0.05543119]
[1725316953027,5.21452238,134.72,134.69,3.76763119]
[1725316953830,1.50282238,134.72,134.69,0.05543119]
[1725316954039,2.90832238,134.72,134.69,0.05543119]
[1725316954427,2.90832238,134.72,134.66,12.853]
[1725316955326,3.7125,134.69,134.66,12.853]
[1725316955534,3.76201295,134.69,134.66,12.8999896]
[1725316957534,3.7126,134.68,134.66,0.0469896]
[1725316958828,3.7129,134.67,134.66,0.0469896]
[1725316960025,0.04951295,134.69,134.66,9.1869896]
[1725316960738,0.04951295,134.69,134.68,9.14]
[1725316961637,0.04951295,134.69,134.68,12.8526]
[1725316962347,0.04951295,134.69,134.66,0.0469896]
[1725316962646,0.04951295,134.69,134.66,9.1869896]
[1725316962943,0.04951295,134.69,134.68,9.14]
[1725316964545,0.04951295,134.69,134.67,3.7127]
[1725316964744,0.04951295,134.69,134.68,9.14]
[1725316965336,0.04951295,134.69,134.68,12.8526]
[1725316966538,7.51214821,134.74,134.7,3.712]
[1725316966744,3.7111,134.74,134.71,9.14]
[1725316967347,7.50695096,134.74,134.71,9.14]
[1725316967534,7.5576134,134.74,134.71,9.18741612]
[1725316968236,7.5576134,134.74,134.71,12.89901612]
[1725316970845,65.81396118,134.84,134.72,9.14]
[1725316971046,9.14,134.82,134.77,9.14]
[1725316971245,3.7096,134.8,134.77,12.8501]
[1725316971444,3.7096,134.8,134.77,9.14]
[1725316971938,3.75781388,134.8,134.77,9.19471458]
[1725316972744,3.7096,134.79,134.77,9.19471458]
[1725316974346,3.7096,134.79,134.77,0.05471458]
[1725316975039,0.04821388,134.8,134.77,0.05471458]
[1725316975633,3.7098,134.79,134.77,0.05471458]
[1725316978952,3.7099,134.78,134.77,0.05471458]
[1725316979850,3.75751388,134.8,134.77,0.05471458]
[1725316980156,0.04821388,134.8,134.77,0.05471458]
[1725316980854,3.7098,134.79,134.77,0.05471458]
[1725316981345,3.7099,134.78,134.77,0.05471458]
[1725316984453,3.7107,134.76,134.68,1.4058]
[1725316984656,7.38075089,134.76,134.72,9.14]
[1725316985450,0.05559598,134.75,134.73,0.0536323]
[1725316986156,0.05559598,134.75,134.73,3.7648323]
[1725316986357,0.05559598,134.75,134.73,0.0536323]
[1725316988753,0.05559598,134.75,134.73,3.7648323]
[1725316989359,0.05559598,134.75,134.74,3.711]
[1725316993658,0.05559598,134.75,134.73,0.0536323]
[1725316994259,7.45156317,134.75,134.73,0.0536323]
[1725316996760,3.711,134.74,134.73,0.0536323]
[1725316999563,7.45146317,134.75,134.73,0.0536323]
[1725316999766,3.74066317,134.75,134.73,0.0536323]
[1725316999965,0.05559598,134.75,134.73,9.1936323]
[1725317000267,10.5774,134.83,134.73,45.7536323]
[1725317000460,12.0274,134.83,134.76,9.14]
[1725317000667,3.7096,134.79,134.76,9.14]
[1725317001469,3.7096,134.79,134.76,9.18847952]
[1725317001470,3.76088254,134.79,134.76,9.18847952]
[1725317001871,3.76088254,134.79,134.76,12.89887952]
[1725317006780,0.05128254,134.79,134.77,3.7102]
[1725317006978,0.05128254,134.79,134.78,9.14]
[1725317010178,1.3362,134.85,134.78,9.14]
[1725317010179,10.5799,134.87,134.78,9.14]
[1725317010382,10.5799,134.87,134.79,9.14]
[1725317010383,9.14,134.85,134.79,9.14]
[1725317010584,3.7087,134.83,134.79,12.8495]
[1725317010981,0.05295222,134.82,134.8,0.04808836]
[1725317011485,3.76175222,134.82,134.8,0.04808836]
[1725317011785,1.4112,134.88,134.81,9.14]
[1725317012082,5.13922788,134.88,134.84,9.14]
[1725317012577,5.1185,134.88,134.84,9.14]
[1725317012778,5.1185,134.88,134.84,12.8481]
[1725317012972,0.04908627,134.87,134.85,0.05713377]
[1725317013385,9.18908627,134.87,134.85,0.05713377]
[1725317013786,12.89658627,134.87,134.85,0.05713377]
[1725317014679,3.7077,134.86,134.85,0.05713377]
[1725317014880,12.8477,134.86,134.85,0.05713377]
[1725317015279,3.708,134.85,134.82,3.7088]
[1725317015486,9.14,134.85,134.77,3.7202403]
[1725317015682,9.14,134.85,134.78,9.14]
[1725317016082,3.7085,134.83,134.8,3.7093]
[1725317016287,9.14,134.85,134.8,3.7093]
[1725317016484,0.04768432,134.83,134.8,3.76256575]
[1725317018075,3.75618432,134.83,134.8,0.05326575]
[1725317018282,0.04768432,134.83,134.8,0.05326575]
[1725317019285,3.75628432,134.83,134.8,3.76246575]
[1725317019989,0.04768432,134.83,134.82,3.7088]
[1725317020286,0.04768432,134.83,134.8,0.05326575]
[1725317021285,3.75638432,134.83,134.8,0.05326575]
[1725317021487,0.04768432,134.83,134.8,0.05326575]
[1725317021888,1.44278432,134.83,134.8,0.05326575]
[1725317022489,9.14,134.82,134.8,0.05326575]
[1725317022699,3.77142212,134.81,134.8,0.05326575]
[1725317022890,9.14,134.81,134.8,0.05326575]
[1725317023187,16.5207569,134.81,134.8,0.05326575]
[1725317029903,7.3807569,134.81,134.8,0.05326575]
[1725317034597,16.5207569,134.81,134.8,0.05326575]
[1725317035894,16.5207569,134.81,134.74,3.7109]
[1725317035895,3.7104,134.77,134.74,3.7109]
[1725317036095,9.14,134.79,134.74,3.7109]
[1725317036601,3.7101,134.78,134.75,3.7107]
[1725317037009,3.76668578,134.78,134.75,3.75856174]
[1725317039911,3.7102,134.77,134.75,3.75856174]
[1725317041597,3.7102,134.77,134.75,0.04786174]
[1725317043407,3.7102,134.77,134.75,3.75846174]
[1725317043606,3.76658578,134.78,134.75,3.75846174]
[1725317047715,3.7102,134.77,134.75,0.04786174]
[1725317050921,3.7104,134.76,134.75,0.04786174]
[1725317053528,3.7103,134.77,134.75,0.04786174]
[1725317066924,3.76668578,134.78,134.75,3.75846174]
[1725317069835,3.7102,134.77,134.75,0.04786174]
[1725317070036,9.14,134.77,134.75,0.04786174]
[1725317070237,9.14,134.76,134.75,0.04786174]
[1725317070424,12.8504,134.76,134.75,0.04786174]
[1725317077535,3.7112,134.74,134.71,3.7117]
[1725317083237,3.7109,134.75,134.69,9.14]
[1725317083443,9.14,134.76,134.72,3.7114]
[1725317084246,3.7109,134.75,134.72,3.7114]
[1725317088646,3.7106,134.76,134.73,3.711]
[1725317088953,13.52558578,134.78,134.72,9.14]
[1725317089250,3.7103,134.77,134.73,9.14]
[1725317090447,3.7103,134.77,134.74,3.7109]
[1725317090941,3.76658578,134.78,134.73,9.14]
[1725317091243,3.76658578,134.78,134.75,3.7106]
[1725317097354,0.05658578,134.78,134.76,3.7103]
[1725317097944,3.7098,134.79,134.76,3.7103]
[1725317098256,3.7098,134.79,134.75,9.14]
[1725317098257,3.7098,134.79,134.77,3.7101]
[1725317098850,3.7098,134.79,134.75,9.14]
[1725317099454,3.7098,134.79,134.76,3.7103]
[1725317100452,9.14,134.8,134.76,3.7103]
[1725317100750,9.14,134.79,134.75,3.7106]
[1725317100947,12.80384746,134.79,134.75,3.7106]
[1725317101655,9.14,134.78,134.71,12.877665]
[1725317101857,9.14,134.78,134.71,9.14]
[1725317102052,3.7103,134.77,134.74,3.7108]
[1725317109652,9.14,134.77,134.71,9.14]
[1725317110148,3.7108,134.75,134.72,3.7113]
[1725317110353,1.4434,134.78,134.72,9.14]
[1725317110653,11.8158,134.84,134.77,9.14]
[1725317111054,11.8158,134.84,134.73,36.56]
[1725317111055,11.8158,134.84,134.78,9.14]
[1725317112455,3.7089,134.82,134.79,3.7095]
[1725317112856,75.59140485,134.85,134.8,3.7093]
[1725317113866,3.7085,134.84,134.8,3.7093]
[1725317114565,3.7085,134.83,134.8,3.7093]
[1725317115458,3.7083,134.84,134.8,3.7093]
[1725317119967,9.14,134.82,134.79,3.7094]
[1725317120173,12.90103763,134.82,134.76,9.14]
[1725317121371,16.60993763,134.82,134.79,3.7096]
[1725317121770,12.8489,134.82,134.79,3.7096]
[1725317123676,16.50599316,134.82,134.79,3.7096]
[1725317127180,3.7089,134.82,134.79,3.7096]
[1725317133980,3.7092,134.81,134.78,3.7098]
[1725317135887,12.8489,134.82,134.77,9.14]
[1725317136285,3.7089,134.82,134.77,9.14]
[1725317136902,3.7092,134.81,134.74,87.79758143]
[1725317137095,9.14,134.8,134.74,83.52098143]
[1725317137304,9.14,134.8,134.74,92.66098143]
[1725317137616,9.14,134.81,134.75,9.14]
[1725317137998,12.8491,134.81,134.78,3.7098]
[1725317138398,9.14,134.81,134.78,3.7098]
[1725317138703,14.1989,134.82,134.79,3.7095]
[1725317139410,65.05770485,134.85,134.79,9.14]
[1725317139596,0.0505431,134.83,134.81,0.0557611]
[1725317141298,0.0505431,134.83,134.81,3.7647611]
[1725317143111,0.0505431,134.83,134.82,3.7088]
[1725317143605,3.7071,134.89,134.85,3.7079]
[1725317144818,0.0559862,134.88,134.86,0.05581076]
[1725317145306,3.7631862,134.88,134.86,0.05581076]
[1725317147108,12.8474,134.87,134.86,0.05581076]
[1725317150027,3.7074,134.87,134.86,0.05581076]
[1725317150817,12.8474,134.87,134.86,0.05581076]
[1725317158927,7.50133328,134.88,134.86,0.05581076]
[1725317159526,3.7074,134.87,134.86,0.05581076]
[1725317159737,9.14,134.87,134.79,9.14]
[1725317159919,9.14,134.85,134.79,9.14]
[1725317160226,2.6524,134.89,134.81,9.14]
[1725317160432,9.14,134.87,134.81,12.85839549]
[1725317160725,0.05336258,134.85,134.83,0.05636323]
[1725317161325,3.76146258,134.85,134.83,0.05636323]
[1725317161519,0.05336258,134.85,134.83,0.05636323]
[1725317161833,3.7082,134.84,134.83,0.05636323]
[1725317165636,12.8482,134.84,134.83,0.05636323]
[1725317166933,9.14,134.82,134.76,1.4551]
[1725317167139,9.14,134.82,134.77,9.14]
[1725317167329,3.709,134.82,134.79,3.7094]
[1725317167534,9.14,134.83,134.78,9.14]
[1725317167838,0.05117172,134.82,134.81,12.8491]
[1725317168033,0.05607871,134.83,134.81,12.8491]
[1725317169131,0.05607871,134.83,134.82,3.7088]
[1725317173631,0.05607871,134.83,134.81,3.7089]
[1725317177139,0.05607871,134.83,134.8,9.18676435]
[1725317178240,0.05607871,134.83,134.82,3.7088]
[1725317178635,0.05607871,134.83,134.8,9.18676435]
[1725317179241,0.05607871,134.83,134.81,3.7089]
[1725317182942,0.05607871,134.83,134.82,12.8488]
[1725317186043,3.7072,134.88,134.82,9.14]
[1725317186251,3.7072,134.88,134.84,9.14]
[1725317186852,3.7072,134.88,134.85,3.7078]
[1725317187151,3.76347189,134.88,134.85,3.75930745]
[1725317187346,7.44728973,134.88,134.85,3.75930745]
[1725317187553,3.7074,134.87,134.85,3.75930745]
[1725317187742,3.7074,134.87,134.85,0.05150745]
[1725317189147,3.7077,134.86,134.85,0.05150745]
[1725317190049,12.8477,134.86,134.85,0.05150745]
[1725317190254,9.14,134.84,134.79,9.14]
[1725317191255,0.04716708,134.83,134.8,3.7599158]
[1725317195754,0.04716708,134.83,134.8,0.0507158]
[1725317195966,9.18716708,134.83,134.8,0.0507158]
[1725317196355,0.04716708,134.83,134.8,0.0507158]
[1725317197255,3.75586708,134.83,134.8,3.7599158]
[1725317198559,3.7088,134.82,134.8,0.0507158]
[1725317198763,0.04716708,134.83,134.8,0.0507158]
[1725317198964,9.18716708,134.83,134.8,0.0507158]
[1725317199460,3.7091,134.81,134.8,0.0507158]
[1725317202769,7.49851532,134.81,134.8,0.0507158]
[1725317204869,16.63851532,134.81,134.8,0.0507158]
[1725317206072,3.7101,134.78,134.75,9.14]
[1725317206563,3.7101,134.78,134.75,12.8507]
[1725317206763,3.7101,134.78,134.75,3.7107]
[1725317207171,3.76475109,134.78,134.75,0.04822821]
[1725317207774,9.14,134.77,134.75,0.04822821]
[1725317208168,3.7104,134.76,134.75,0.04822821]
[1725317216073,0.05465109,134.78,134.75,0.04822821]
[1725317216269,0.05465109,134.78,134.75,9.18822821]
[1725317217377,3.76465109,134.78,134.75,12.89892821]
[1725317217690,0.05465109,134.78,134.75,9.18822821]
[1725317217974,1.3409,134.85,134.76,9.14]
[1725317218285,3.68381784,134.88,134.82,9.14]
[1725317218286,11.8842,134.88,134.82,9.14]
[1725317218578,3.7077,134.86,134.82,9.14]
[1725317219080,0.05507115,134.85,134.83,0.04926319]
[1725317220975,3.76317115,134.85,134.83,0.04926319]
[1725317221383,0.05507115,134.85,134.83,0.04926319]
[1725317222273,3.7082,134.84,134.83,0.04926319]
[1725317222784,12.8482,134.84,134.83,0.04926319]
[1725317223380,3.7093,134.81,134.77,3.7102]
[1725317223570,9.14,134.82,134.76,9.14]
[1725317223882,9.14,134.82,134.77,3.7101]
[1725317224179,1.3674,134.86,134.77,9.14]
[1725317224482,0.05563403,134.83,134.8,0.053954]
[1725317224984,3.7088,134.82,134.8,0.053954]
[1725317225484,3.709,134.82,134.8,0.053954]
[1725317227480,9.14,134.82,134.8,0.053954]
[1725317227677,9.14,134.82,134.66,6.03290029]
[1725317227983,12.8498,134.79,134.75,3.7107]
[1725317228673,12.8498,134.79,134.76,0.04431896]
[1725317228872,0.05077104,134.78,134.77,3.7102]
[1725317230377,0.05077104,134.78,134.76,9.18431896]
[1725317231480,0.05077104,134.78,134.77,3.7102]
[1725317232082,0.05077104,134.78,134.77,12.8502]
[1725317234085,10.5781,134.85,134.79,3.7094]
[1725317234286,10.5781,134.85,134.79,12.8494]
[1725317234783,3.7087,134.83,134.79,12.8494]
[1725317235083,0.05708524,134.82,134.8,0.05555572]
[1725317235282,3.76588524,134.82,134.8,0.05555572]
[1725317244284,3.7091,134.81,134.8,0.05555572]
[1725317246388,12.8491,134.81,134.8,0.05555572]
[1725317246581,3.7098,134.79,134.74,9.14]
[1725317246985,3.7098,134.79,134.76,3.7104]
[1725317247187,7.4506879,134.8,134.74,9.14]
[1725317247384,1.3284,134.82,134.76,9.14]
[1725317247583,0.05710096,134.8,134.78,3.74923427]
[1725317250698,0.05710096,134.8,134.79,3.7096]
[1725317252096,3.76640096,134.8,134.78,0.03953427]
[1725317252696,3.7096,134.79,134.78,0.03953427]
[1725317257206,3.7102,134.77,134.74,3.7109]
[1725317257813,3.7102,134.77,134.75,3.7107]
[1725317258107,0.05158056,134.77,134.75,3.7107]
[1725317260806,0.05158056,134.77,134.68,94.34011196]
[1725317261011,9.19158056,134.77,134.71,12.8516]
[1725317261208,9.14,134.76,134.71,9.14]
[1725317261411,9.14,134.76,134.69,9.14]
[1725317261608,0.04766674,134.74,134.69,9.14]
[1725317262212,3.7113,134.73,134.7,3.712]
[1725317262412,0.04766674,134.74,134.69,9.14]
[1725317262720,3.7113,134.73,134.69,12.8521]
[1725317263111,3.7113,134.73,134.69,9.14]
[1725317263521,3.7113,134.73,134.7,3.7119]
[1725317266016,3.7113,134.73,134.64,1.4576]
[1725317266017,9.14,134.72,134.64,1.4576]
[1725317266214,0.05557065,134.69,134.66,9.14]
[1725317266420,0.05557065,134.69,134.68,3.7124]
[1725317267123,1.4266,134.77,134.73,3.7112]
[1725317267806,5.1369,134.77,134.73,3.7112]
[1725317268007,0.05150109,134.76,134.74,12.90576171]
[1725317268917,0.05150109,134.76,134.75,12.8507]
[1725317270821,0.05150109,134.76,134.75,3.7107]
[1725317271019,0.05150109,134.76,134.75,12.8507]
[1725317274027,4.2284,134.84,134.77,3.71]
[1725317274230,9.14,134.83,134.77,9.14]
[1725317275023,0.04807932,134.81,134.79,0.05650764]
[1725317275327,3.75727932,134.81,134.79,0.05650764]
[1725317275825,9.18807932,134.81,134.79,0.05650764]
[1725317276026,3.64243323,134.8,134.79,0.05650764]
[1725317276228,3.7093,134.8,134.79,0.05650764]
[1725317276424,7.47858783,134.8,134.79,0.05650764]
[1725317277532,3.7093,134.8,134.79,0.05650764]
[1725317281134,3.7102,134.77,134.71,1.3549]
[1725317281331,9.14,134.79,134.72,9.14]
[1725317281632,9.14,134.79,134.75,3.7107]
[1725317281831,12.84595653,134.8,134.75,3.7107]
[1725317282028,0.05400215,134.79,134.76,0.05044717]
[1725317282835,0.05400215,134.79,134.77,3.7101]
[1725317284030,0.05400215,134.79,134.78,3.7099]
[1725317284223,0.05400215,134.79,134.78,12.8499]
[1725317286532,0.05400215,134.79,134.78,3.7099]
[1725317286832,0.05400215,134.79,134.78,12.8499]
[1725317293235,3.68108629,134.87,134.78,9.14]
[1725317293427,225.0,134.94,134.84,9.14]
[1725317293428,9.14,134.9,134.84,9.14]
[1725317293631,9.14,134.9,134.8,36.56]
[1725317293632,9.14,134.88,134.82,9.14]
[1725317293836,1.4412,134.92,134.77,2.8222]
[1725317293837,1.4412,134.92,134.84,9.14]
[1725317294036,3.66636997,134.91,134.85,9.14]
[1725317294345,0.05641981,134.89,134.87,3.75735018]
[1725317294543,0.05641981,134.89,134.87,0.05015018]
[1725317294734,0.05641981,134.89,134.87,9.19015018]
[1725317294931,0.05641981,134.89,134.88,3.7071]
[1725317297439,0.05641981,134.89,134.87,3.75745018]
[1725317301553,0.05641981,134.89,134.87,0.05015018]
[1725317302442,3.76331981,134.89,134.87,0.05015018]
[1725317302646,9.14,134.88,134.87,0.05015018]
[1725317302950,12.8471,134.88,134.87,0.05015018]
[1725317305544,9.14,134.88,134.87,0.05015018]
[1725317305945,0.05641981,134.89,134.87,0.05015018]
[1725317306747,3.7071,134.88,134.87,0.05015018]
[1725317313155,3.76331981,134.89,134.87,0.05015018]
[1725317320653,3.7071,134.88,134.87,0.05015018]
[1725317324557,0.05641981,134.89,134.87,0.05015018]
[1725317325555,0.05641981,134.89,134.87,3.75745018]
[1725317327763,0.05641981,134.89,134.87,0.05015018]
[1725317328354,3.76331981,134.89,134.87,3.75755018]
[1725317329868,0.05641981,134.89,134.88,3.7071]
[1725317332653,0.05641981,134.89,134.87,3.75745018]
[1725317332858,0.05641981,134.89,134.87,0.05015018]
[1725317333564,3.76341981,134.89,134.87,0.05015018]
[1725317335170,3.76341981,134.89,134.87,3.75755018]
[1725317335370,3.76341981,134.89,134.87,0.05015018]
[1725317338664,3.7071,134.88,134.87,0.05015018]
[1725317340265,0.05641981,134.89,134.87,0.05015018]
[1725317340463,0.05641981,134.89,134.87,9.19015018]
[1725317340866,0.05641981,134.89,134.88,3.7071]
[1725317341476,0.05641981,134.89,134.88,12.8471]
[1725317342773,0.05641981,134.89,134.88,3.7071]
[1725317343078,0.05641981,134.89,134.88,12.8471]
[1725317353490,0.05641981,134.89,134.75,7.4214]
[1725317353690,0.05641981,134.89,134.83,9.14]
[1725317353691,3.67857407,134.89,134.83,9.14]
[1725317353893,3.67857407,134.89,134.83,12.76447194]
[1725317354189,7.38557407,134.89,134.85,3.7077]
[1725317354386,3.707,134.89,134.85,3.7077]
[1725317354593,3.707,134.89,134.86,0.04877193]
[1725317354594,0.04988542,134.88,134.86,0.04877193]
[1725317354792,0.04988542,134.88,134.86,3.75637193]
[1725317356800,0.04988542,134.88,134.86,0.04877193]
[1725317357794,3.75718542,134.88,134.86,0.04877193]
[1725317357995,0.04988542,134.88,134.86,0.04877193]
[1725317358385,3.7074,134.87,134.86,0.04877193]
[1725317361097,3.7081,134.85,134.82,3.7086]
[1725317362189,0.0539467,134.85,134.83,3.7084]
[1725317362695,3.7620467,134.85,134.82,3.7087]
[1725317362900,9.1939467,134.85,134.7,7.4238]
[1725317363203,9.1939467,134.85,134.79,9.14]
[1725317363391,9.1939467,134.85,134.79,12.91308095]
[1725317364090,3.7084,134.84,134.8,3.7091]
[1725317365784,3.7088,134.82,134.79,12.8495]
[1725317365986,0.04996461,134.82,134.73,36.56]
[1725317366190,0.04996461,134.82,134.77,9.14]
[1725317366793,1.42036461,134.82,134.77,9.14]
[1725317367300,3.7095,134.8,134.77,9.14]
[1725317368400,3.7095,134.8,134.77,12.8501]
[1725317368996,3.7093,134.81,134.77,12.8501]
[1725317369604,5.12936461,134.82,134.78,3.7097]
[1725317370296,5.12936461,134.82,134.78,12.8497]
[1725317371498,3.7093,134.81,134.78,12.8497]
[1725317372301,3.7093,134.8,134.78,9.14]
[1725317373396,3.7092,134.81,134.78,12.8499]
[1725317376011,3.7092,134.81,134.78,3.7099]
[1725317377310,3.7093,134.8,134.78,3.7099]
[1725317378212,3.7093,134.8,134.77,3.7101]